Cogmind - Beta 16 @@@ ROGUE MODE // 2025.11.15 @ 11:51:36 Player: Minty Result: Destroyed by Y-54 Guardian with Gatling Laser Performance ------------- Evolutions (0) 0 Regions Visited (3) 600 Robots Destroyed (13) 65 Value Destroyed (328) 328 Prototype IDs (5) 100 Alien Tech Used (0) 0 Bonus (0) 0 TOTAL SCORE: 1093 Bonus ------- None Cogmind --------- Core Integrity 0/250 Matter 284/300 Energy 246/250 System Corruption 0% Temperature Cool (6) Movement Rolling (100) Location -7/Recycling Parts ------- > --- POWER (1) -------- Ion Engine > --- PROPULSION (2) --- Armored Huge Wheel > --- UTILITY (2) ------ Cooling System Small Storage Unit > --- WEAPON (2) ------- Improved Medium Laser Slug Cannon > --- INVENTORY (8) ---- Cooling System Cooling System Layered Light Armor Plating Makeshift Hacking Suite Improved Medium Laser Multitool Peak State ------------ > --- POWER ------------ Ion Engine > --- PROPULSION ------- Armored Huge Wheel > --- UTILITY ---------- Cooling System Small Storage Unit > --- WEAPON ----------- Improved Medium Laser Improved Medium Laser > --- INVENTORY -------- Cooling System Cooling System Layered Light Armor Plating Makeshift Hacking Suite Improved Medium Laser Slug Cannon Multitool Piercing Trap [Rating: 20] Favorites ----------- Power Ion Engine Engine Ion Engine Propulsion Light Treads Treads Light Treads Leg Aluminum Leg Wheel Wheel Utility Small Storage Unit Device Cooling System Storage Small Storage Unit Weapon Improved Medium Laser Energy Gun Improved Medium Laser Energy Cannon Beam Cannon Ballistic Gun Assault Rifle Ballistic Cannon Slug Cannon Build | -11 -10 -10 -7 ------- Run | Yrd Mat Sub Rec Slots Evolved . | . . . . Power . | . . . . Propulsion . | . . . . Utility . | . . . . Weapon . | . . . . Parts Attached 17 | . 10 4 3 Power 1 | . . . 1 Engine 1 | . . . 1 Core . | . . . . Reactor . | . . . . Propulsion 5 | . 2 2 1 Treads 2 | . 2 . . Leg . | . . . . Wheel 3 | . . 2 1 Hover . | . . . . Flight . | . . . . Utility 3 | . 3 . . Device 3 | . 3 . . Storage . | . . . . Processor . | . . . . Hackware . | . . . . Protection . | . . . . Artifact . | . . . . Weapon 8 | . 5 2 1 Energy Gun 5 | . 3 1 1 Energy Cannon 2 | . 2 . . Ballistic Gun . | . . . . Ballistic Cannon 1 | . . 1 . Launcher . | . . . . Special Weapon . | . . . . Impact Weapon . | . . . . Slashing Weapon . | . . . . Piercing Weapon . | . . . . Special Melee Weapon . | . . . . Unidentified Prototypes 1 | . 1 . . Parts Lost 4 | . . 3 1 Power . | . . . . Propulsion 2 | . . 2 . Utility . | . . . . Weapon 2 | . . 1 1 Highest Loss Streak 2 | . . 2 1 To Critical Strikes . | . . . . Average Backups 7 | 6 7 7 6 Power . | 1 1 1 . Propulsion . | 4 3 . . Utility 2 | . . 3 3 Weapon 2 | 1 1 3 1 Tool/Special . | . . . . Unused Backups 23 | . 12 6 5 Power 1 | . 1 . . Propulsion 4 | . 3 1 . Utility 8 | . 1 3 4 Weapon 9 | . 7 2 . Tool/Special 1 | . . . 1 Average Slot Usage (%) 96 | . 95 96 94 Engine 14 | . 14 14 14 Treads 19 | . 2 23 9 Leg 3 | . 25 . . Wheel 2 | . . 1 14 Device 13 | . 9 14 14 Storage 14 | . 14 14 14 Energy Gun 25 | . 12 27 27 Peak Build Rating 20 | 6 14 14 20 Average Rating 12 | 6 8 13 15 On Entrance 9 | 6 6 13 13 Avg Prop Armor Cover (%) 13 | . . 13 13 Naked Turns . | . . . . Heaviest Build 22 | 13 18 18 22 Greatest Support 40 | 20 40 40 28 Greatest Overweight (x) 1 | . . 1 1 Average Overweight (x) . | . . . . Largest Inventory Capacity 8 | 8 8 8 8 Average Capacity 8 | 8 8 8 8 Most Carried 8 | 6 8 8 8 Average Carried 7 | 6 7 7 7 Final Capacity 8 | 8 8 8 8 Final Carried 8 | 6 7 8 6 Class Distribution -------------------- 100% | Mutant Dominant Class ---------------- Mutant | -10/Materials Mutant | -10/Subcaves Mutant | -7/Recycling Resources | -11 -10 -10 -7 ----------- Run | Yrd Mat Sub Rec Matter Collected 421 | 200 77 109 35 Remotely . | . . . . Salvage Created 469 | . 40 206 223 Parts 26 | . 9 12 5 Haulers Intercepted . | . . . . Recyclers Shooed . | . . . . Parts Field Recycled . | . . . . Retrieved Matter . | . . . . Parts Self-Destructed 15 | . . 15 . Prevented . | . . . . Parts Restored . | . . . . Kills | -11 -10 -10 -7 ------- Run | Yrd Mat Sub Rec Combat Hostiles Destroyed 7 | . 1 5 1 Guns 6 | . 1 4 1 Classes Destroyed 8 | . 3 3 2 Builder 1 | . 1 . . Tunneler 1 | . 1 . . Recycler 2 | . . . 2 Turret 2 | . . 2 . Swarmer 2 | . 1 1 . Sentry 1 | . . . 1 Cobbler 1 | . . 1 . Subdweller 4 | . . 4 . Best Kill Streak 1 | . 1 1 1 Combat Bots Only 1 | . 1 1 1 Max Kills in Single Turn 1 | . 1 1 1 Gunslinging . | . . . . Exploded . | . . . . Melee . | . . . . Uniques/NPCs Destroyed . | . . . . Combat | -11 -10 -10 -7 -------- Run | Yrd Mat Sub Rec Hostile Shots Fired 183 | . 2 142 39 Missed 82 | . 1 63 18 Hits 101 | . 1 79 21 Projectile 101 | . 1 79 21 AOE 1 | . . 1 . Critical Strikes 1 | . . 1 . Damage Taken 984 | . 12 832 140 Core 252 | . . 203 49 Absorbed by Shields . | . . . . Core Remaining (%) 100 | 100 . . . Volleys Fired 55 | . 7 35 13 Largest 2 | . 2 2 2 Hottest 120 | . 120 112 112 Shots Fired 104 | . 14 64 26 Gun 95 | . 12 58 25 Cannon 9 | . 2 6 1 Launcher . | . . . . Special . | . . . . Kinetic 12 | . 5 6 1 Thermal 92 | . 9 58 25 Explosive . | . . . . Electromagnetic . | . . . . Robot Hit Streak 8 | . 8 8 7 Robot Miss Streak 4 | . 3 4 2 Penetration Max . | . . . . Secondary Targets 1 | . . 1 . Max Gunslinging Chain 1 | . . 1 . Shots Hit Robots 67 | . 9 38 20 Core Hits 21 | . 3 13 5 Critical Kills . | . . . . Critical Parts Destroyed . | . . . . Critical Strikes 8 | . 1 4 3 Burn 8 | . 1 4 3 Melee Attacks . | . . . . Impact . | . . . . Slashing . | . . . . Piercing . | . . . . Sneak Attacks . | . . . . Combat Hostiles . | . . . . Follow-up Attacks . | . . . . Damage Inflicted 1094 | . 130 607 357 Guns 978 | . 94 563 321 Cannons 116 | . 36 44 36 Explosions . | . . . . Melee . | . . . . Ramming . | . . . . Kinetic 132 | . 52 44 36 Thermal 962 | . 78 563 321 Explosive . | . . . . Electromagnetic . | . . . . Impact . | . . . . Slashing . | . . . . Piercing . | . . . . Highest Corruption . | . . . . Average Corruption . | . . . . Corruption Purged . | . . . . Corruption Blocked . | . . . . Overload Shots . | . . . . Overflow Damage . | . . . . Projectiles . | . . . . Explosions . | . . . . Melee . | . . . . Knockbacks . | . . . . Impact . | . . . . Kinetic . | . . . . Secondary . | . . . . Self-Inflicted Damage . | . . . . Shots . | . . . . Rammed . | . . . . Targets Rammed . | . . . . Kicked . | . . . . Crushed . | . . . . Highest Temperature 18 | . 18 . 8 Average Temperature 7 | . 7 . 8 Received Heat Transfer 444 | . 6 402 36 Siege Activations . | . . . . Martial Activations . | . . . . Shielding Activations . | . . . . Robots Disrupted . | . . . . Combat Hostiles . | . . . . Robots Corrupted . | . . . . Combat Hostiles . | . . . . Parts Fried . | . . . . Impact Corruptions . | . . . . Robots Melted 1 | . . 1 . Combat Hostiles 1 | . . 1 . Parts Melted 4 | . . 2 2 Heat Transferred 2701 | . 259 1517 925 Parts Sabotaged . | . . . . Parts Stolen . | . . . . Parts Stripped . | . . . . Power Chain Reactions . | . . . . Alert | -11 -10 -10 -7 ------- Run | Yrd Mat Sub Rec Maximum Alert Level . | . . . . Low Security (%) 100 | 100 100 . 100 Level 1 . | . . . . Level 2 . | . . . . Level 3 . | . . . . Level 4 . | . . . . Level 5 . | . . . . High Security . | . . . . Max Security . | . . . . Peak Influence 24 | . 20 . 24 Initial . | . . . . Average 5 | . 3 . 7 Influence Increases 239 | . 43 105 91 Destroy 0b10 Robot/C 100 | . 20 60 20 Destroy 0b10 Robot/NC 20 | . 10 . 10 Trap Triggered on 0b10 10 | . . . 10 Successful Hack 49 | . 13 . 36 Disable Machine 15 | . . . 15 Lose Combat Pursuer 45 | . . 45 . Influence Decreases 237 | . 43 105 89 Time Decay 211 | . 43 89 79 Lost Part 26 | . . 16 10 Squads Dispatched 2 | . 2 . . Investigation 2 | . 2 . . Extermination . | . . . . Reinforcement . | . . . . Assault . | . . . . Garrison . | . . . . Intercept . | . . . . Searches Triggered . | . . . . Construction Impeded . | . . . . Haulers Reinforced . | . . . . Active Scanning Responses . | . . . . Cargo Convoy Interrupts . | . . . . Stealth | -11 -10 -10 -7 --------- Run | Yrd Mat Sub Rec Distress Signals 2 | . 2 . . Communications Jammed . | . . . . Distress Signals . | . . . . Times Spotted 23 | . 7 13 3 Peak Tracking Total 6 | . 4 6 2 Tactical Retreats 2 | . . 2 . Traps | -11 -10 -10 -7 ------- Run | Yrd Mat Sub Rec Traps Triggered 1 | . 1 . . Indirectly . | . . . . Trap Hack Attempts . | . . . . Triggered . | . . . . Disarmed . | . . . . Reprogrammed . | . . . . Reused 1 | . . . 1 Traps Extracted . | . . . . Installed 2 | . . 1 1 Triggered 1 | . . . 1 Most Traps Carried 1 | . . 1 1 Machines | -11 -10 -10 -7 ---------- Run | Yrd Mat Sub Rec Machines Disabled 3 | . . 2 1 Max in Single Turn 1 | . . 1 1 Machines Repaired . | . . . . Machines Dismantled . | . . . . Machines Sabotaged . | . . . . Overloaded Fab Kills . | . . . . Hacking | -11 -10 -10 -7 --------- Run | Yrd Mat Sub Rec Machines Accessed 5 | . 2 . 3 Terminals 5 | . 2 . 3 Fabricators . | . . . . Repair Stations . | . . . . Recycling Units . | . . . . Scanalyzers . | . . . . Garrison Access . | . . . . Total Hacks 13 | . 7 . 6 Successful 7 | . 4 . 3 Failed 6 | . 3 . 3 Catastrophic . | . . . . Database Lockouts . | . . . . Manual 7 | . 5 . 2 Terminals 13 | . 7 . 6 Fabricators . | . . . . Repair Stations . | . . . . Recycling Units . | . . . . Scanalyzers . | . . . . Garrison Access . | . . . . Terminal Hacks 5 | . 3 . 2 Robot Analysis 1 | . 1 . . Prototype ID Bank 1 | . . . 1 Transport Status 1 | . 1 . . Hauler Manifests 1 | . 1 . . Zone Layout 1 | . . . 1 Fabricator Hacks . | . . . . Repair Station Hacks . | . . . . Recycling Unit Hacks . | . . . . Scanalyzer . | . . . . Garrison Access Hacks . | . . . . Unauthorized Hacks 2 | . 1 . 1 Terminals 2 | . 1 . 1 Botnet 2 | . 1 . 1 Fabricators . | . . . . Repair Stations . | . . . . Recycling Units . | . . . . Scanalyzers . | . . . . Garrison Access . | . . . . Data Cores Recovered . | . . . . Used . | . . . . Hacking Detections 5 | . 2 . 3 Full Trace Events . | . . . . Feedback Events . | . . . . Feedback Blocked . | . . . . Robot Schematics Acquired . | . . . . Robots Built . | . . . . Authchips . | . . . . Time . | . . . . Total Robot Build Rating . | . . . . Part Schematics Acquired . | . . . . Parts Built . | . . . . Authchips . | . . . . Time . | . . . . Total Part Build Rating . | . . . . Part Studies Acquired . | . . . . Parts Repaired . | . . . . Time . | . . . . Parts Recycled . | . . . . Recycled Matter . | . . . . Retrieved Matter . | . . . . Retrieved Components . | . . . . Parts Scanalyzed . | . . . . Part Schematics Acquired . | . . . . Parts Damaged . | . . . . Bothacking | -11 -10 -10 -7 ------------ Run | Yrd Mat Sub Rec Used RIF Installer . | . . . . Robots Hacked . | . . . . Non-combat . | . . . . Combat . | . . . . Robot Hacks Applied . | . . . . Relay Couplers Released . | . . . . Fabnet Peak Effective % . | . . . . Robots Rewired . | . . . . Allies Hacked . | . . . . Hacks Repelled . | . . . . Allies | -11 -10 -10 -7 -------- Run | Yrd Mat Sub Rec Total Allies . | . . . . Largest Group . | . . . . Highest-Rated Group . | . . . . Highest-Rated Ally . | . . . . Total Orders . | . . . . Ally Attacks . | . . . . Total Damage . | . . . . Kills . | . . . . Allies Corrupted . | . . . . Allies Melted . | . . . . Intel | -11 -10 -10 -7 ------- Run | Yrd Mat Sub Rec Active Infowar (turns) . | . . . . Robot Analysis Total 1 | . 1 . . Derelict Logs Recovered . | . . . . Drone Launches . | . . . . Drone Recoveries . | . . . . Exploration | -11 -10 -10 -7 ------------- Run | Yrd Mat Sub Rec Turns Passed 2330 | 3 282 1796 249 Spaces Moved 1163 | 3 190 772 198 Core . | . . . . Treads 758 | . 16 742 . Legs 177 | 3 174 . . Wheels 228 | . . 30 198 Hover . | . . . . Flight . | . . . . Fastest Speed 95 | 120 120 95 95 Average Speed 141 | 120 123 157 96 Slowest Speed 160 | 120 160 160 100 Overloaded Moves . | . . . . Propulsion Burnouts . | . . . . Robots Hopped . | . . . . Potential Cave-ins . | . . . . Cave-ins Triggered . | . . . . Exploration Rate (%) 32 | 3 37 40 51 Regions Visited 3 Branch Regions 2 Pre-discovered Areas . | . . . . Known Exits Taken . | . . . . Unknown Exits Taken 3 | 1 1 1 . Scrap Searched 2 | . . 2 . Spaces Dug . | . . . . Terrain Destroyed 1 | . . 1 . Melee . | . . . . Projectile 1 | . . 1 . AOE . | . . . . Terrain Rammed . | . . . . Walls Destroyed . | . . . . Machines Disabled . | . . . . Actions | -11 -10 -10 -7 --------- Run | Yrd Mat Sub Rec Total 1751 | 2 226 1292 231 Wait 472 | . 1 461 10 Move 1160 | 2 189 771 198 Hop . | . . . . Pick Up 20 | . 9 10 1 Fast Attach 4 | . 1 2 1 Attach 6 | . 2 2 2 Detach 1 | . . 1 . Swap 9 | . 7 1 1 Drop 22 | . 10 8 4 Fire 55 | . 7 35 13 Melee . | . . . . Ram . | . . . . Kick . | . . . . Crush . | . . . . Escape Stasis . | . . . . Rewire . | . . . . Trap 2 | . . 1 1 Miscellaneous . | . . . . Route ------- -11/Scrapyard -10/Materials -10/Subcaves -7/Recycling History --------- Turn | Location | Event 1 | -11/Scrapyard | Discovered new exit (range 2) 4 | -11/Scrapyard | Entered Materials 5 | -10/Materials | Met a group of wandering Federalists 218 | -10/Materials | Discovered new exit (range 15) 286 | -10/Materials | Entered Subcaves 287 | -10/Subcaves | Continued accompanying wandering Federalists (4) 316 | -10/Subcaves | Build established: Mutant 515 | -10/Subcaves | Curiously followed by a Cobbler waking with a query about "LVR3C" 557 | -10/Subcaves | Lost 5 allies 1557 | -10/Subcaves | Core integrity fell below 50% 1770 | -10/Subcaves | Discovered new exit (range 16) 1803 | -10/Subcaves | Core integrity fell below 20% 2082 | -10/Subcaves | Entered Recycling 2331 | -7/Recycling | Destroyed by Y-54 Guardian with Gatling Laser Last Messages --------------- 02252_ R-06 Scavenger collects Lgt. Treads. 02262_ Connecting with Terminal... >>Layout(Zone) Retrieving Zone 6M layout... Downloaded map data. 02282_ Y-54 Guardian springs to life. 02293_ Dropped Piercing Trap. 02293_ Installed Piercing Trap. 02295_ Y-54 Guardian triggered Piercing Trap. 02295_ Spikes shoot up from the floor. 02295_ Y-54 Guardian suffers critical hit (Impale). 02295_ Y-54 Guardian suffers critical hit (Burn). 02298_ Imp. Medium Laser destroyed. 02299_ Imp. Heat Sink melted. 02299_ Y-54 Guardian destroyed. 02302_ Acquired 15 matter. 02302_ R-06 Scavenger collects Imp. Light Armor Plating. 02308_ U-05 Engineer lays Concrete. 02309_ R-06 Scavenger collects Imp. Heat Sink. 02326_ Y-54 Guardian springs to life. Map ----- +----------------------------------------------------+ | ??????????#%#????????????????????????????????????? | | ## #????????????????????????????????????? | | ########### #????????????????????????????????????? | | ??????????# #????????????????????????????????????? | | ??????????# #????????????????????????????????????? | | ########### #????????????????????????????????????? | | !*! # #????????????????????????????????????? | | !%]! *# #????????????????????????????????????? | | ! = # #????????????????????????????????????? | | + #????????????????????????????????????? | | # #????????????????????????????????????? | | ########### #????????????????????????????????????? | | # #????????????????????????????????????? | | ! ###+###??????????????????????????????????? | | ! # #??????????????????????????????????? | | ! # "" #??##########??????????????????????? | | # + T" #??# """ """ ??????????????????????? | | # # "" #??# """ """ ??????????????????????? | | ##+#### # #??# """ """ ??????????????????????? | | # # #??# ??????????????????????? | | # # #??# ??????????????????????? | | # # #??# ??????????????????????? | | # #######??# ??????????????????????? | | # ##"""###?# ???????#??????????????? | | # ##"Y"# ######+########### ####+##+#??????? | | # @ Y ?????? | | + % r r ?????? | | # r Y ?????? | | ###/#+############################ ????????? | | #?# %! #??????????????????????????????? | | #?# #??????????????????????????????? | | #?# #??????????????????????????????? | | #?# #??????????????????????????????? | | #?# #?????????????????????????????? | | #?# ##?????????????????????????????? | | ## ####?# #??????????????????????????????? | | ?##?????# #??????????????????????????????? | | ????????###########??????????????????????????????? | | ?????????????????????????????????????????????????? | | ?????????????????????????????????????????????????? | | ?????????????????????????????????????????????????? | | ?????????????????????????????????????????????????? | | ?????????????????????????????????????????????????? | | ?????????????????????????????????????????????????? | | ?????????????????????????????????????????????????? | | | | | | | | | | | +----------------------------------------------------+ Best States ------------- Heat Dissipation 47 Energy Generation 10 Energy Capacity 250 Matter Stores 300 Matter Capacity 300 Sight Range 16 Terrain Scan Density 10 Evasion (%) 55 Recoil Reduction 2 Item Schematics ----------------- None Robot Schematics ------------------ None Fabricated ------------ Nothing Repaired ---------- Nothing Studied --------- None Alien Tech Used ----------------- None Achievements -------------- Strength In Numbers Challenges ------------ None Game ------ Seed DataTachyonThruster Manual? 0 Play Time 00:11:01 Cumulative 1219.4 hours Start 2025.11.15 @ 11:41:39 End 2025.11.15 @ 11:51:36 Sessions 1 Manual Loads 0 Difficulty Rogue Special Mode None Game No. 1498 Rogue 1214 Adventurer 124 Explorer 160 Win Type - Total 56 Types 42/0/8/4/1/0/0/1/0/0 Lore% 92 Gallery% 86 Achievement% 64 Wizard Run 0 Options --------- Layout 0 ASCII 0 Keyboard 1 Movement Numpad Keybinds 0 Fullscreen 2 Font 18/X11 Map View 76x50 Zoom Use 0% Tactical HUD 1 Map Filters NONE Filters NONE Steam 1 RUN: fc79d730-aca2-4570-ae17-59deeaa76981